Cogmind - Beta 10.2 @@@ ROGUE MODE // 2020.11.24 @ 15:20:14 // Halloween2020/ForbiddenLore Player: Luigi Panache Result: Destroyed by S-10 Pest with Light Assault Rifle Performance ------------- Evolutions (1) 500 Regions Visited (4) 800 Robots Destroyed (0) 0 Value Destroyed (0) 0 Prototype IDs (0) 0 Alien Tech Used (0) 0 Bonus (200) 200 TOTAL SCORE: 1500 Bonus ------- Pacifist 200 Cogmind --------- Core Integrity 0/400 Matter 234/300 Energy 100/100 System Corruption 0% Temperature Cool (0) Movement Core (50) Location -9/Mines Parts ------- > --- POWER (1) -------- (None) > --- PROPULSION (4) --- (None) > --- UTILITY (2) ------ Improved ECM Suite > --- WEAPON (2) ------- (None) > --- INVENTORY (4) ---- Weight Redist. System Weight Redist. System Improved Signal Interpreter Propulsion Shielding Peak State ------------ > --- POWER ------------ (None) > --- PROPULSION ------- Wheel Compact Wheel > --- UTILITY ---------- Small Storage Unit Terrain Scan Processor > --- WEAPON ----------- Bore Cannon > --- INVENTORY -------- Weight Redist. System Weight Redist. System Weight Redist. System Weight Redist. System Propulsion Shielding [Rating: 10] Favorites ----------- Power Light Ion Engine Engine Light Ion Engine Propulsion Wheel Wheel Wheel Utility Small Storage Unit Device Improved ECM Suite Storage Small Storage Unit Processor Terrain Scan Processor Protection Propulsion Shielding Weapon Bore Cannon Ballistic Cannon Bore Cannon Build | -11 -10 -10 -9 -9 ------- Run | Scr Mat Min Mat Min Slots Evolved 2 | . . . 2 . Power . | . . . . . Propulsion 2 | . . . 2 . Utility . | . . . . . Weapon . | . . . . . Parts Attached 9 | 4 2 1 2 . Power 1 | 1 . . . . Engine 1 | 1 . . . . Core . | . . . . . Reactor . | . . . . . Propulsion 2 | 2 . . . . Treads . | . . . . . Leg . | . . . . . Wheel 2 | 2 . . . . Hover . | . . . . . Flight . | . . . . . Utility 5 | 1 2 . 2 . Device 2 | . . . 2 . Storage 1 | 1 . . . . Processor 1 | . 1 . . . Hackware . | . . . . . Protection 1 | . 1 . . . Artifact . | . . . . . Weapon 1 | . . 1 . . Energy Gun . | . . . . . Energy Cannon . | . . . . . Ballistic Gun . | . . . . . Ballistic Cannon 1 | . . 1 . . Launcher . | . . . . . Special Weapon . | . . . . . Impact Weapon . | . . . . . Slashing Weapon . | . . . . . Piercing Weapon . | . . . . . Special Melee Weapon . | . . . . . Unidentified Prototypes . | . . . . . Parts Lost 4 | . 1 2 . 1 Power 1 | . 1 . . . Propulsion 2 | . . 2 . . Utility 1 | . . . . 1 Weapon . | . . . . . Highest Loss Streak 1 | . 1 1 . 1 Average Slot Usage (%) 46 | . 61 53 21 18 Engine 2 | . 7 . . . Wheel 18 | . 28 23 . . Device 5 | . . . 20 18 Storage 10 | . 14 14 . . Processor 6 | . 1 14 . . Protection 3 | . 10 . . . Naked Turns . | . . . . . Heaviest Build 13 | 7 8 13 3 3 Greatest Support 26 | 26 26 26 3 3 Greatest Overweight (x) 2 | 2 . 1 . . Average Overweight (x) . | . . . . . Largest Inventory Capacity 6 | 6 6 6 4 4 Average Capacity 5 | 5 6 6 4 4 Most Carried 5 | . 5 5 4 4 Average Carried 3 | . . 5 3 4 Final Capacity 6 | 6 6 6 4 4 Final Carried 5 | . 5 5 4 4 Class Distribution -------------------- 75% | Mutant 24% | Infiltrator-Mutant Dominant Class ---------------- Mutant | -10/Materials Mutant | -10/Mines Infiltrator-Mutant | -9/Materials Infiltrator-Mutant | -9/Mines Resources | -11 -10 -10 -9 -9 ----------- Run | Scr Mat Min Mat Min Matter Collected 218 | 198 . . . 20 Remotely . | . . . . . Salvage Created . | . . . . . Parts . | . . . . . Haulers Intercepted . | . . . . . Recyclers Shooed . | . . . . . Parts Field Recycled . | . . . . . Retrieved Matter . | . . . . . Parts Self-Destructed . | . . . . . Prevented . | . . . . . Kills | -11 -10 -10 -9 -9 ------- Run | Scr Mat Min Mat Min Combat Hostiles Destroyed . | . . . . . Classes Destroyed . | . . . . . Best Kill Streak . | . . . . . Combat Bots Only . | . . . . . Max Kills in Single Turn . | . . . . . Gunslinging . | . . . . . Exploded . | . . . . . Melee . | . . . . . Uniques/NPCs Destroyed . | . . . . . Combat | -11 -10 -10 -9 -9 -------- Run | Scr Mat Min Mat Min Damage Taken 840 | . 131 255 204 250 Core 639 | . 72 158 204 205 Absorbed by Shields . | . . . . . Core Remaining (%) 54 | 100 . 8 . . Volleys Fired 2 | . . 2 . . Largest 1 | . . 1 . . Hottest 57 | . . 57 . . Shots Fired 2 | . . 2 . . Gun . | . . . . . Cannon 2 | . . 2 . . Launcher . | . . . . . Special . | . . . . . Kinetic 2 | . . 2 . . Thermal . | . . . . . Explosive . | . . . . . Electromagnetic . | . . . . . Robot Hit Streak . | . . . . . Robot Miss Streak . | . . . . . Penetration Max . | . . . . . Secondary Targets . | . . . . . Shots Hit Robots . | . . . . . Core Hits . | . . . . . Critical Hits . | . . . . . Critical Kills . | . . . . . Critical Parts Destroyed . | . . . . . Melee Attacks . | . . . . . Impact . | . . . . . Slashing . | . . . . . Piercing . | . . . . . Sneak Attacks . | . . . . . Combat Hostiles . | . . . . . Follow-up Attacks . | . . . . . Damage Inflicted . | . . . . . Guns . | . . . . . Cannons . | . . . . . Explosions . | . . . . . Melee . | . . . . . Ramming . | . . . . . Kinetic . | . . . . . Thermal . | . . . . . Explosive . | . . . . . Electromagnetic . | . . . . . Impact . | . . . . . Slashing . | . . . . . Piercing . | . . . . . Highest Corruption . | . . . . . Average Corruption . | . . . . . Corruption Purged . | . . . . . Overload Shots . | . . . . . Overflow Damage . | . . . . . Projectiles . | . . . . . Explosions . | . . . . . Melee . | . . . . . Knockbacks . | . . . . . Impact . | . . . . . Kinetic . | . . . . . Secondary . | . . . . . Self-Inflicted Damage . | . . . . . Shots . | . . . . . Rammed . | . . . . . Targets Rammed . | . . . . . Kicked . | . . . . . Crushed . | . . . . . Highest Temperature 37 | . . 37 . . Average Temperature 21 | . . 21 . . Received Heat Transfer 99 | . 72 . 27 . Siege Activations . | . . . . . Robots Corrupted . | . . . . . Combat Hostiles . | . . . . . Parts Fried . | . . . . . Impact Corruptions . | . . . . . Robots Melted . | . . . . . Combat Hostiles . | . . . . . Parts Melted . | . . . . . Heat Transferred . | . . . . . Parts Sabotaged . | . . . . . Parts Stolen . | . . . . . Parts Stripped . | . . . . . Power Chain Reactions . | . . . . . Missiles Intercepted . | . . . . . Alert | -11 -10 -10 -9 -9 ------- Run | Scr Mat Min Mat Min Peak Influence 91 | . 62 24 91 35 Initial 35 | . . 24 1 35 Average 23 | . 27 20 31 32 Maximum Alert Level . | . . . . . Low Security (%) 100 | 100 100 100 100 100 Level 1 . | . . . . . Level 2 . | . . . . . Level 3 . | . . . . . Level 4 . | . . . . . Level 5 . | . . . . . High Security . | . . . . . Max Security . | . . . . . Squads Dispatched 1 | . 1 . . . Investigation . | . . . . . Extermination . | . . . . . Reinforcement 1 | . 1 . . . Assault . | . . . . . Garrison . | . . . . . Intercept . | . . . . . Construction Impeded . | . . . . . Haulers Reinforced . | . . . . . Stealth | -11 -10 -10 -9 -9 --------- Run | Scr Mat Min Mat Min Distress Signals . | . . . . . Communications Jammed . | . . . . . Distress Signals . | . . . . . Times Spotted 22 | . 6 3 10 3 Peak Tracking Total 6 | . 4 3 6 3 Tactical Retreats 4 | . 2 . 2 . Traps | -11 -10 -10 -9 -9 ------- Run | Scr Mat Min Mat Min Traps Triggered . | . . . . . Indirectly . | . . . . . Trap Hack Attempts . | . . . . . Triggered . | . . . . . Disarmed . | . . . . . Reprogrammed . | . . . . . Reused . | . . . . . Traps Extracted . | . . . . . Installed . | . . . . . Triggered . | . . . . . Machines | -11 -10 -10 -9 -9 ---------- Run | Scr Mat Min Mat Min Machines Disabled . | . . . . . Max in Single Turn . | . . . . . Machines Sabotaged . | . . . . . Garrisons Compromised . | . . . . . Overloaded Fab Kills . | . . . . . Fab Network Shutdowns . | . . . . . Hacking | -11 -10 -10 -9 -9 --------- Run | Scr Mat Min Mat Min Machines Accessed 3 | . 3 . . . Terminals 3 | . 3 . . . Fabricators . | . . . . . Repair Stations . | . . . . . Recycling Units . | . . . . . Scanalyzers . | . . . . . Garrison Access . | . . . . . Total Hacks 4 | . 4 . . . Successful 2 | . 2 . . . Failed 2 | . 2 . . . Catastrophic 2 | . 2 . . . Database Lockouts . | . . . . . Manual 3 | . 3 . . . Terminals 4 | . 4 . . . Fabricators . | . . . . . Repair Stations . | . . . . . Recycling Units . | . . . . . Scanalyzers . | . . . . . Garrison Access . | . . . . . Terminal Hacks 1 | . 1 . . . Branch Access Points 1 | . 1 . . . Fabricator Hacks . | . . . . . Repair Station Hacks . | . . . . . Recycling Unit Hacks . | . . . . . Scanalyzer . | . . . . . Garrison Access Hacks . | . . . . . Unauthorized Hacks 1 | . 1 . . . Terminals 1 | . 1 . . . Botnet 1 | . 1 . . . Fabricators . | . . . . . Repair Stations . | . . . . . Recycling Units . | . . . . . Scanalyzers . | . . . . . Garrison Access . | . . . . . Data Cores Recovered . | . . . . . Used . | . . . . . Hacking Detections 2 | . 2 . . . Full Trace Events . | . . . . . Feedback Events . | . . . . . Feedback Blocked . | . . . . . Robot Schematics Acquired . | . . . . . Robots Built . | . . . . . Matter . | . . . . . Time . | . . . . . Total Robot Build Rating . | . . . . . Part Schematics Acquired . | . . . . . Parts Built . | . . . . . Matter . | . . . . . Time . | . . . . . Total Part Build Rating . | . . . . . Parts Repaired . | . . . . . Time . | . . . . . Parts Recycled . | . . . . . Recycled Matter . | . . . . . Retrieved Matter . | . . . . . Retrieved Components . | . . . . . Parts Scanalyzed . | . . . . . Part Schematics Acquired . | . . . . . Parts Damaged . | . . . . . Bothacking | -11 -10 -10 -9 -9 ------------ Run | Scr Mat Min Mat Min Used RIF Installer . | . . . . . Robots Hacked . | . . . . . Non-combat . | . . . . . Combat . | . . . . . Robot Hacks Applied . | . . . . . Relay Couplers Released . | . . . . . Robots Rewired . | . . . . . Allies Hacked . | . . . . . Hacks Repelled . | . . . . . Allies | -11 -10 -10 -9 -9 -------- Run | Scr Mat Min Mat Min Total Allies . | . . . . . Largest Group . | . . . . . Highest-Rated Group . | . . . . . Highest-Rated Ally . | . . . . . Total Orders . | . . . . . Ally Attacks . | . . . . . Total Damage . | . . . . . Kills . | . . . . . Allies Corrupted . | . . . . . Allies Melted . | . . . . . Intel | -11 -10 -10 -9 -9 ------- Run | Scr Mat Min Mat Min Robot Analysis Total . | . . . . . Derelict Logs Recovered 2 | . . 2 . . Drone Launches . | . . . . . Drone Recoveries . | . . . . . Exploration | -11 -10 -10 -9 -9 ------------- Run | Scr Mat Min Mat Min Turns Passed 614 | 42 179 235 128 30 Spaces Moved 644 | 40 191 253 129 31 Core 184 | 6 . 18 129 31 Treads . | . . . . . Legs . | . . . . . Wheels 460 | 34 191 235 . . Hover . | . . . . . Flight . | . . . . . Fastest Speed 50 | 50 90 80 50 50 Average Speed 79 | 89 90 88 50 50 Slowest Speed 150 | 150 90 100 50 50 Overloaded Moves . | . . . . . Propulsion Burnouts . | . . . . . Robots Hopped . | . . . . . Cave-ins Triggered . | . . . . . Exploration Rate (%) 23 | 3 38 49 17 8 Regions Visited 4 Branch Regions 2 Pre-discovered Areas 1 | . . . . 1 Known Exits Taken 2 | . 1 . 1 . Unknown Exits Taken 2 | 1 . 1 . . Scrap Searched 1 | . . . . 1 Spaces Dug 3 | . . 3 . . Terrain Destroyed 3 | . . 3 . . Melee . | . . . . . Projectile 3 | . . 3 . . AOE . | . . . . . Terrain Rammed . | . . . . . Walls Destroyed . | . . . . . Machines Disabled . | . . . . . Actions | -11 -10 -10 -9 -9 --------- Run | Scr Mat Min Mat Min Total 739 | 43 197 261 192 46 Wait 76 | . . 5 56 15 Move 640 | 39 190 252 128 31 Hop . | . . . . . Pick Up 6 | . 4 . 2 . Fast Attach 9 | 4 2 1 2 . Attach . | . . . . . Detach 1 | . 1 . . . Swap . | . . . . . Drop 5 | . . 1 4 . Fire 2 | . . 2 . . Melee . | . . . . . Ram . | . . . . . Kick . | . . . . . Crush . | . . . . . Escape Stasis . | . . . . . Rewire . | . . . . . Trap . | . . . . . Miscellaneous . | . . . . . Route ------- -11/Scrapyard -10/Materials -10/Mines -9/Materials (discovered 4 exits: Mat x2 / *Min x2) -9/Mines History --------- Turn | Location | Event 22 | -11/Scrapyard | Discovered new exit (range 12) 43 | -11/Scrapyard | Entered Materials 64 | -10/Materials | Identified exit to Mines 222 | -10/Materials | Entered Mines 235 | -10/Mines | Learned Materials machine intel 250 | -10/Mines | Learned 4 Materials zone layouts 306 | -10/Mines | Build established: Mutant 327 | -10/Mines | A weapon hastily lodged in a ceiling crevice suddenly fell to the ground 377 | -10/Mines | Discovered new exit (range 15) 389 | -10/Mines | Core integrity fell below 50% 444 | -10/Mines | Core integrity fell below 20% 457 | -10/Mines | Entered Materials 457 | -9/Materials | Evolved 2 slots: Propulsion x2 458 | -9/Materials | Identified exit to Materials 458 | -9/Materials | Identified exit to Mines 459 | -9/Materials | Loaded intel: 52 machine locations 583 | -9/Materials | Discovered exit to Mines (range 5) 585 | -9/Materials | Core integrity fell below 50% 585 | -9/Materials | Entered Mines 599 | -9/Mines | Learned location of Storage (-7) 608 | -9/Mines | Core integrity fell below 20% 615 | -9/Mines | Destroyed by S-10 Pest with Light Assault Rifle Last Messages --------------- 00562_ Acquired Imp. Signal Interpreter. 00583_ EXIT=FOUND: MINES LOCATION=MINES GOAL=ESCAPE Something is scanning the area. 00592_ Searching scrap... 00592_ Found Integration Mediator. 00592_ Found Rocket Launcher. 00592_ Found Particle Cannon. 00592_ Found 20 Matter. 00593_ Acquired 20 matter. 00599_ A derelict emerges from the shadows: "Are any of them following you? I'm here trying to lose some heat after our second raid on Storage failed. Whatever you do stay away from that place, they've tightened security following our previous successful raids." World map updated: -7/Storage. 00607_ Transmission Jammer destroyed. 00611_ IZ-5WU(g): "We scattered so the Unaware couldn't effectively use their advantage in numbers, and I suggest you do the same." 00611_ IZ-5WU(g) slips back into the shadows. Map ----- +----------------------------------------------------+ | ????????????????????????????????????????????? | | ????????????????????????????????????????????? | | ????????????????????????????????????????????? | | ????????????????????????????????????????????? | | ????????????????????????????????????????????? | | ????????????????????????????????????????????? | | ????????????????????????????????????????????? | | ????????????????????????????????????????????? | | ????????????????????????????????????????????? | | ????????????????????????????????????????????? | | ????????????????????????????????????????????? | | ????????????????????????????????????????????? | | ????????????????????????????????????????????? | | ????????????????????????????????????????????? | | ?????????????????????????####???????????????? | | ????????????????????????## ##??????????????? | | ???????????????????????## ##?????????????? | | ??????????????????????## #?????????????? | | ?????????????????????## #?????????????? | | ?????????????????????# #??????????????? | | ?????????????????????# #???????????????? | | ?????????????????????## ###???????????????? | | ??????????????????????## #?????????????????? | | ???????????????????????# #??????????####???? | | ???????????????????????# #????????## ##??? | | ???????????????????????# @#???????## #??? | | ???????????????????????#ss#??????## #??? | | ???????????????????????# ######## #???? | | ???????????????????????#s ## ## ###???? | | ???????????????????????# ##?????? | | ???????????????????????# ### ##??????? | | ???????????????????????#!]###### #???????? | | ???????????????????????# ] #??## ##???????? | | ???????????????????????#### #???# ##????????? | | ??????????????????????????? ??# #?????????? | | ???????????????????????????? #?????????? | | ???????????????????????????? #####?????????? | | ????????????????????????????? #?????????????? | | ?????????????????????????????? ?????????????? | | ?????????????????????????????? ????????????? | | ??????????????????????????????? ????????????? | | ???????????????????????????????? ???????????? | | ????????????????????????????????????????????? | | ????????????????????????????????????????????? | | ????????????????????????????????????????????? | | ????????????????????????????????????????????? | | ????????????????????????????????????????????? | | ????????????????????????????????????????????? | | ????????????????????????????????????????????? | | ????????????????????????????????????????????? | +----------------------------------------------------+ Best States ------------- Heat Dissipation 28 Energy Generation 10 Energy Capacity 125 Matter Stores 258 Matter Capacity 300 Sight Range 16 Terrain Scan Density 85 ECM Strength 2 Jamming Range 8 Propulsion Shielding 33 Evasion (%) 50 Item Schematics ----------------- None Robot Schematics ------------------ None Fabricated ------------ Nothing Alien Tech Used ----------------- None Achievements -------------- None Challenges ------------ None Game ------ Seed IonRagnarokShotgun Manual? 0 Play Time 00:13:02 Cumulative 121.9 hours Start 2020.11.24 @ 10:41:10 End 2020.11.24 @ 15:20:14 Sessions 4 Manual Loads 0 Difficulty Rogue Special Mode Halloween2020/ForbiddenLore Game No. 81 Rogue 23 Adventurer 21 Explorer 37 Win Type - Total 6 Types 6/0/0/0/0/0/0/0/0 Lore% 47 Gallery% 70 Achievement% 57 Wizard Run 0 Options --------- ASCII 1 Keyboard 0 Movement Mouse Keybinds 0 Fullscreen 2 Font 18/Terminus Map View 76x50 Tactical HUD 1 Map Filters NONE Filters NONE Steam 1 RUN: eadab6bf-1e90-4031-b691-b3749e2096a9